bitfinex-derivatives/quotes_ETHF0:USTF0_20230105
["timestamp","ask_amount","ask_price","bid_price","bid_amount"]
[1672900518541,4.289083,1251.2,1251.1,4.2952496]
[1672900518750,4.289083,1251.2,1251.1,7.5030496]
[1672900518964,5.48109307,1251.2,1251.1,7.5030496]
[1672900519178,2.98109307,1251.2,1251.1,6.19846154]
[1672900519380,1.789083,1251.2,1251.1,6.19846154]
[1672900519915,1.789083,1251.2,1251.1,6.90321194]
[1672900520439,1.789083,1251.2,1251.1,8.69846154]
[1672900520638,1.789083,1251.2,1251.1,4.40321194]
[1672900520639,4.174527,1251.2,1251.1,4.40321194]
[1672900520851,6.674527,1251.2,1251.1,4.40321194]
[1672900521592,4.885444,1251.2,1251.0,15.15341194]
[1672900521800,4.28745166,1251.1,1251.0,1.19541194]
[1672900522639,4.28745166,1251.1,1251.0,5.49066154]
[1672900522854,2.97937814,1251.1,1251.0,5.49066154]
[1672900523171,2.97937814,1251.1,1251.0,5.49035639]
[1672900523382,1.19192648,1251.1,1251.0,4.2952496]
[1672900524857,1.19192648,1251.1,1251.0,4.89219797]
[1672900525488,5.47937814,1251.2,1251.0,4.89219797]
[1672900525698,5.47937814,1251.2,1251.1,6.19571338]
[1672900525909,5.4793705,1251.2,1251.1,6.19571395]
[1672900526116,5.47936851,1251.2,1251.1,6.19571395]
[1672900526326,12.26745166,1251.2,1251.1,6.19571395]
[1672900526537,6.67289566,1251.2,1251.0,3.69516535]
[1672900526749,2.97960056,1251.1,1251.0,5.48791395]
[1672900526961,2.97960056,1251.1,1251.0,4.2927486]
[1672900526962,1.19184022,1251.1,1251.0,4.2927486]
[1672900527375,1.19184022,1251.1,1251.0,2.5]
[1672900527583,4.76705222,1251.2,1251.0,6.30862152]
[1672900527793,4.76705222,1251.2,1251.1,6.19554467]
[1672900528007,2.97929188,1251.2,1251.1,7.39264477]
[1672900528218,1.78499709,1251.2,1251.1,9.51630007]
[1672900529064,1.78499709,1251.2,1251.1,12.50366795]
[1672900530532,1.78499709,1251.2,1251.1,10.11146998]
[1672900530744,1.78499709,1251.2,1251.1,9.51457878]
[1672900530957,1.78499709,1251.2,1251.1,10.11146998]
[1672900533055,1.78499709,1251.2,1251.1,15.1041021]
[1672900533794,1.78499709,1251.2,1251.1,10.11263139]
[1672900534946,1.78499709,1251.2,1251.1,18.09263139]
[1672900535153,1.78499709,1251.2,1251.1,15.1041021]
[1672900535579,1.78499709,1251.2,1251.1,18.09291994]
[1672900535895,1.78499709,1251.2,1251.1,10.11291994]
[1672900537149,1.78499709,1251.2,1251.1,12.50431968]
[1672900538106,1.78499709,1251.2,1251.1,12.50441941]
[1672900538723,1.78499709,1251.2,1251.1,10.11291994]
[1672900538935,1.78499709,1251.2,1251.1,12.50441904]
[1672900539153,2.97683731,1251.2,1251.1,12.50441904]
[1672900539565,2.97683731,1251.2,1251.1,9.5156012]
[1672900540420,4.76521119,1251.2,1251.1,8.0992991]
[1672900541254,5.95881497,1251.2,1251.1,6.19789888]
[1672900541476,4.17044109,1251.2,1251.1,4.40383955]
[1672900541674,6.67044109,1251.2,1251.1,4.40383955]
[1672900546199,6.67044109,1251.2,1251.1,1.19603955]
[1672900547252,3.1814,1251.1,1250.9,5.38031694]
[1672900547455,1.1814,1250.9,1250.8,7.55357662]
[1672900547671,15.3692,1250.9,1250.8,7.55357662]
[1672900548408,18.9544924,1250.9,1250.8,7.55357662]
[1672900548617,10.48,1250.8,1250.7,15.10749152]
[1672900548833,5.48016659,1250.8,1250.7,15.10749152]
[1672900549452,7.86072289,1250.8,1250.7,15.10749152]
[1672900550078,15.84072289,1250.8,1250.7,14.98669152]
[1672900550824,2.3805563,1250.8,1250.7,14.98669152]
[1672900551027,1.78388556,1250.8,1250.7,14.98669152]
[1672900551240,6.66444186,1250.8,1250.7,14.98669152]
[1672900552082,4.2838759,1250.8,1250.7,14.98669152]
[1672900552292,6.6644322,1250.8,1250.7,14.98669152]
[1672900552503,4.2838759,1250.8,1250.7,14.98669152]
[1672900552713,6.6644322,1250.8,1250.7,14.98669152]
[1672900552924,1.7838759,1250.8,1250.7,14.98669152]
[1672900554394,4.2838759,1250.8,1250.7,14.98669152]
[1672900554602,1.7838759,1250.8,1250.7,14.98669152]
[1672900555136,2.97203457,1250.8,1250.7,14.98669152]
[1672900557237,1.18815867,1250.8,1250.7,14.98669152]
[1672900559545,6.17983457,1250.9,1250.7,14.98669152]
[1672900559962,2.97203457,1250.9,1250.8,2.5]
[1672900560171,1.18815867,1251.0,1250.8,2.5]
[1672900560384,2.97203457,1251.1,1250.8,2.5]
[1672900561016,5.47203457,1251.1,1250.8,2.5]
[1672900561331,3.68815867,1251.0,1250.8,2.5]
[1672900561645,5.47203457,1251.0,1250.8,2.5]
[1672900561960,3.68815867,1251.0,1250.8,2.5]
[1672900563426,1.18815867,1251.0,1250.8,2.5]
[1672900564585,8.67983457,1251.1,1250.8,2.5]
[1672900565120,3.68815867,1251.0,1250.8,2.5]
[1672900565329,2.0,1250.9,1250.8,2.5]
[1672900565631,3.68815867,1251.0,1250.8,2.5]
[1672900566047,5.47203457,1251.0,1250.8,2.5]
[1672900568468,3.68815867,1251.0,1250.8,2.5]
[1672900568674,1.18815867,1251.0,1250.8,2.5]
[1672900568895,1.18815867,1251.1,1250.8,2.5]
[1672900569206,1.18815867,1251.1,1250.9,3.2078]
[1672900569414,1.18815867,1251.1,1251.0,2.5]
[1672900570256,2.97203457,1251.1,1250.8,2.5]
[1672900570471,5.47203457,1251.1,1250.8,2.5]
[1672900571205,2.5,1251.0,1250.8,2.5]
[1672900571417,3.68815867,1251.0,1250.8,2.5]
[1672900574257,3.68815867,1251.0,1250.8,5.7078]
[1672900574567,3.68815867,1251.0,1250.8,2.5]
[1672900574782,1.18815867,1250.9,1250.7,14.98669152]
[1672900574994,2.97203457,1250.9,1250.7,14.98669152]
[1672900575203,2.0,1250.8,1250.7,14.98669152]
[1672900575406,3.18815867,1250.8,1250.7,14.98669152]
[1672900575613,4.97203457,1250.8,1250.7,14.98669152]
[1672900575828,12.95203457,1250.8,1250.7,14.98669152]
[1672900576040,14.9716759,1250.8,1250.7,14.98669152]
[1672900576361,16.16007026,1250.8,1250.7,14.98669152]
[1672900577089,1.53630848,1250.7,1250.4,1.794378]
[1672900577299,12.143514,1250.5,1250.1,5.002178]
[1672900577514,1.18855668,1250.3,1250.1,3.2078]
[1672900577930,1.18855668,1250.3,1250.1,3.0548]
[1672900578141,3.18855668,1250.3,1250.1,5.5548]
[1672900578353,1.1814,1249.9,1249.8,0.00212579]
[1672900578674,2.5,1249.8,1249.1,2.93893149]
[1672900578875,2.5,1249.8,1249.1,1.79169177]
[1672900578876,11.1878,1249.4,1249.1,1.79169177]
[1672900579197,7.98,1249.4,1249.3,2.5]
[1672900579400,7.98,1249.4,1249.0,4.99949177]
[1672900579401,2.5,1249.3,1249.0,1.78492788]
[1672900579607,9.16769676,1249.7,1249.3,1.1814]
[1672900579824,11.1878,1249.8,1249.6,0.8138]
[1672900580031,5.38034483,1250.0,1249.6,0.8138]
[1672900580246,5.38034483,1250.0,1249.7,2.5]
[1672900580247,2.5,1249.9,1249.7,2.5]
[1672900580664,3.2078,1249.8,1249.7,2.5]
[1672900580874,3.2078,1249.8,1249.4,2.5]
[1672900581083,3.2078,1249.6,1249.4,2.5]
[1672900582559,3.2078,1249.8,1249.4,2.5]
[1672900582768,2.5,1249.7,1249.4,2.5]
[1672900583180,3.2078,1249.8,1249.4,2.5]
[1672900584236,4.19264807,1250.0,1249.5,4.3892]
[1672900584444,4.19264807,1250.0,1249.7,3.2078]
[1672900584968,4.19264807,1250.0,1249.8,2.5]
[1672900585184,12.17264807,1250.0,1249.5,1.1814]
[1672900585393,3.2078,1249.8,1249.4,2.5]
[1672900585603,2.5,1249.7,1249.4,2.5]
[1672900585813,3.2078,1249.8,1249.4,2.5]
[1672900587073,1.5,1249.5,1249.4,2.5]
[1672900587493,1.5,1249.5,1249.3,2.5]
[1672900587494,1.5,1249.5,1249.2,4.0769]
[1672900587815,3.2078,1249.4,1249.0,8.0]
[1672900588022,3.2078,1249.4,1249.0,3.0]
[1672900588336,3.2078,1249.4,1249.1,2.5]
[1672900588750,3.2078,1249.2,1249.1,2.5]
[1672900588974,2.89258578,1249.2,1249.1,2.5]
[1672900589278,2.84455312,1249.2,1249.1,2.5]
[1672900589907,3.2078,1249.4,1249.1,2.5]
[1672900591382,4.3892,1249.6,1249.1,13.6878]
[1672900591602,3.2078,1249.6,1249.1,13.6878]
[1672900591808,3.2078,1249.8,1249.3,3.2078]
[1672900592019,2.5,1249.7,1249.4,2.5]
[1672900592336,3.2078,1249.8,1249.4,2.5]
[1672900592961,3.2078,1249.8,1249.5,3.2078]
[1672900593177,3.2078,1249.8,1249.6,2.5]
[1672900596630,4.19264807,1250.0,1249.6,10.48]
[1672900597054,4.19264807,1250.0,1249.6,2.5]
[1672900598000,4.19264807,1250.0,1249.6,10.48]
[1672900602104,4.19264807,1250.0,1249.6,2.5]
[1672900604094,4.19264807,1250.0,1249.6,10.48]
[1672900604739,4.19264807,1250.0,1249.6,2.5]
[1672900605680,4.19264807,1250.0,1249.4,13.958]
[1672900605681,3.2078,1249.8,1249.4,13.958]
[1672900605890,8.96484807,1250.0,1249.5,2.5]
[1672900605891,3.2078,1249.6,1249.5,2.5]
[1672900616197,4.39549676,1249.8,1249.5,2.5]
[1672900617142,1.18769676,1249.6,1249.5,4.28492788]
[1672900617352,3.68769676,1249.6,1249.5,4.28492788]
[1672900617563,1.18769676,1249.6,1249.5,4.28492788]
[1672900618403,2.9692419,1249.7,1249.5,4.87069939]
[1672900618612,2.9692419,1249.7,1249.6,1.79499199]
[1672900619142,7.84885036,1249.7,1249.5,2.5]
[1672900619352,1.78490003,1249.6,1249.5,4.29499199]
[1672900620191,2.97472801,1249.6,1249.5,4.29499199]
[1672900620610,1.18982798,1249.6,1249.5,4.29499199]
[1672900620816,1.18982798,1249.6,1249.5,14.64569138]
[1672900621032,1.78490003,1249.7,1249.5,14.26884135]
[1672900621244,1.78490003,1249.7,1249.6,1.79534055]
[1672900622718,7.37230849,1249.8,1249.6,1.79534055]
[1672900623030,5.58740846,1249.8,1249.7,2.5]
[1672900623347,7.37189694,1249.8,1249.7,2.5]
[1672900625552,5.58740846,1249.8,1249.7,2.5]
[1672900627030,2.37960846,1249.8,1249.7,2.5]
[1672900631332,2.37960846,1249.8,1249.7,4.29534055]
[1672900632911,5.34885036,1249.8,1249.7,2.5]
[1672900633116,2.9692419,1249.8,1249.7,2.5]
[1672900633328,5.35009971,1249.8,1249.7,2.5]
[1672900633538,2.9692419,1249.8,1249.7,2.5]
[1672900633857,2.9692419,1249.8,1249.6,1.79534055]
[1672900634066,2.38070404,1249.7,1249.6,1.79534055]
[1672900634592,7.08850404,1249.7,1249.6,1.79534055]
[1672900638067,10.05774594,1249.7,1249.5,4.16603994]
[1672900638279,1.78597971,1249.6,1249.5,4.16603994]
[1672900638693,4.16668375,1249.6,1249.5,1.79534055]
[1672900638909,4.16665271,1249.6,1249.5,1.79534055]
[1672900639118,2.38070404,1249.6,1249.5,1.79534055]
[1672900641744,4.88070404,1249.6,1249.5,1.79534055]
[1672900642904,2.38070404,1249.6,1249.5,1.79534055]
[1672900644688,2.38070404,1249.6,1249.5,4.16603994]
[1672900645419,4.16790598,1249.6,1249.5,3.78887856]
[1672900645628,1.78720194,1249.6,1249.5,3.81608974]
[1672900645837,1.78720194,1249.6,1249.5,6.80490758]
[1672900646478,1.78720194,1249.6,1249.5,6.80488023]
[1672900646804,1.78720194,1249.6,1249.5,6.80492887]
[1672900647106,1.78720194,1249.6,1249.5,6.80494646]
[1672900647315,1.78720194,1249.6,1249.5,4.40699701]
[1672900647528,1.78720194,1249.6,1249.5,12.38699701]
[1672900656151,1.78720194,1249.6,1249.5,9.88699701]
[1672900656362,1.78720194,1249.6,1249.5,12.38699701]
[1672900656881,1.78720194,1249.6,1249.5,15.59479701]
[1672900659096,4.16790598,1249.7,1249.5,15.59479701]
[1672900659296,1.78720194,1249.7,1249.6,4.89766005]
[1672900660148,1.78720194,1249.7,1249.6,2.5]
[1672900660667,1.78720194,1249.7,1249.6,4.89765601]
[1672900661612,1.78720194,1249.7,1249.6,12.87765601]
[1672900662243,1.78720194,1249.7,1249.6,10.48]
[1672900662455,1.78720194,1249.7,1249.6,12.87733359]
[1672900665713,1.78720194,1249.7,1249.6,16.08513359]
[1672900666656,4.1675552,1249.9,1249.7,1.5]
[1672900666862,1.78693236,1249.9,1249.8,13.58389062]
[1672900667182,1.78693236,1249.9,1249.8,16.08389062]
[1672900668754,2.77178043,1250.0,1249.9,2.5]
[1672900668967,5.15248447,1250.0,1249.9,5.49313317]
[1672900669186,2.77178043,1250.0,1249.9,4.29587136]
[1672900670332,2.77178043,1250.0,1249.9,12.27587136]
[1672900670539,0.98484807,1250.0,1249.9,12.87609062]
[1672900670754,1.78693236,1250.1,1250.0,2.5]
[1672900670968,4.1676364,1250.2,1250.0,7.50202794]
[1672900671170,1.78693236,1250.1,1250.0,16.6781731]
[1672900671595,2.38070404,1250.2,1250.1,2.5]
[1672900672012,4.16580391,1250.2,1250.1,3.69614516]
[1672900672648,4.16580391,1250.2,1250.1,2.5]
[1672900672857,1.78509987,1250.2,1250.1,2.5]
[1672900673595,1.78509987,1250.2,1250.1,10.48]
[1672900674016,1.78509987,1250.2,1250.1,11.67614516]
[1672900674333,4.16580391,1250.3,1250.1,11.67614516]
[1672900674543,4.16580391,1250.3,1250.2,3.2078]
[1672900674750,4.16384522,1250.3,1250.1,10.48]
[1672900674961,1.78314118,1250.2,1250.1,10.48]
[1672900675172,4.16384522,1250.3,1250.1,10.48]
[1672900675386,1.78314118,1250.3,1250.1,10.48]
[1672900676430,1.78314118,1250.3,1250.1,11.67614516]
[1672900676649,1.78314118,1250.3,1250.1,10.48]
[1672900679380,4.16384522,1250.3,1250.1,10.48]
[1672900680220,1.78314118,1250.2,1250.1,10.48]
[1672900680430,6.66384522,1250.3,1250.1,10.48]
[1672900680635,4.16384522,1250.3,1250.1,10.48]
[1672900680851,1.78314118,1250.3,1250.1,10.48]
[1672900684530,1.78314118,1250.3,1250.2,3.2078]
[1672900685257,4.16384522,1250.4,1250.2,11.1878]
[1672900685577,1.78314118,1250.4,1250.2,11.1878]
[1672900685995,1.78314118,1250.4,1250.3,1.5]
[1672900688102,4.16384522,1250.5,1250.3,1.5]
[1672900689248,1.78314118,1250.5,1250.4,11.1878]
[1672900689572,1.78314118,1250.6,1250.4,11.1878]
[1672900689883,1.78314118,1250.6,1250.5,2.5]
[1672900690611,1.78314118,1250.7,1250.5,10.48]
[1672900690830,1.78314118,1250.7,1250.6,11.1878]
[1672900692304,1.78314118,1250.8,1250.6,11.1878]
[1672900692512,1.78314118,1250.8,1250.7,2.5]
[1672900693351,4.16384522,1250.8,1250.7,2.5]
[1672900693561,1.78314118,1250.8,1250.7,2.5]
[1672900693777,4.16384522,1250.8,1250.7,2.5]
[1672900694188,1.78314118,1250.8,1250.7,2.5]
[1672900695659,4.16384522,1250.8,1250.7,2.5]
[1672900695879,4.16039878,1250.8,1250.7,2.5]
[1672900696194,6.65997358,1250.8,1250.7,2.5]
[1672900696506,6.65997358,1250.8,1250.5,10.48]
[1672900696710,1.77926954,1250.7,1250.5,10.48]
[1672900696919,4.27926954,1250.7,1250.5,2.5]
[1672900697546,1.77926954,1250.7,1250.5,2.5]
[1672900697764,4.27926954,1250.8,1250.6,3.2078]
[1672900697971,4.27926954,1250.8,1250.7,2.5]
[1672900698190,1.77926954,1250.8,1250.7,2.5]
[1672900698822,2.38070404,1250.8,1250.7,2.5]
[1672900699036,4.27992749,1250.8,1250.7,2.5]
[1672900699762,1.77992749,1250.8,1250.7,2.5]
[1672900704821,4.16063153,1250.8,1250.7,2.5]
[1672900706182,1.77992749,1250.8,1250.7,2.5]
[1672900706704,4.88070404,1250.8,1250.7,2.5]
[1672900707551,4.16312994,1250.8,1250.7,2.5]
[1672900708394,1.7824259,1250.8,1250.7,2.5]
[1672900709654,4.16312994,1250.8,1250.7,2.5]
[1672900710808,5.34994594,1250.8,1250.7,2.5]
[1672900711233,5.34994594,1250.8,1250.5,10.48]
[1672900711550,6.6638058,1250.7,1250.5,2.5]
[1672900711753,1.78310176,1250.6,1250.5,2.5]
[1672900713119,1.78310176,1250.8,1250.5,14.67031856]
[1672900713331,1.78310176,1250.8,1250.7,7.98]
[1672900713538,1.78310176,1250.8,1250.7,10.48]
[1672900716903,4.1638058,1250.9,1250.7,10.48]
[1672900717117,1.78310176,1250.9,1250.8,11.1878]
[1672900721848,1.78310176,1250.9,1250.8,7.98]
[1672900722374,4.1638058,1250.9,1250.8,7.98]
[1672900722793,2.38070404,1250.9,1250.8,7.98]
[1672900723321,4.16534521,1250.9,1250.8,7.98]
[1672900723639,2.38070404,1250.9,1250.8,7.98]
[1672900724475,2.9692419,1250.9,1250.7,13.6878]
[1672900724796,4.88057793,1250.8,1250.7,13.6878]
[1672900725209,2.38057793,1250.8,1250.7,13.6878]
[1672900726581,2.38057793,1250.8,1250.7,11.1878]
[1672900726788,2.9692419,1250.8,1250.6,1.19408116]
[1672900726991,2.38168146,1250.7,1250.5,16.6761091]
[1672900727200,4.28624521,1250.6,1250.5,15.48202794]
[1672900727420,1.78624521,1250.6,1250.5,16.6780267]
[1672900728158,1.78624521,1250.6,1250.5,15.48202794]
[1672900728683,4.16792667,1250.6,1250.5,16.67870045]
[1672900728898,4.16792667,1250.6,1250.5,8.69870045]
[1672900729518,2.38168146,1250.6,1250.5,8.69870045]
[1672900731093,4.16903191,1250.6,1250.5,7.50202794]
[1672900731518,2.38168146,1250.6,1250.5,8.69891808]
[1672900731731,4.1690117,1250.6,1250.5,7.50202794]
[1672900732576,4.1690117,1250.6,1250.5,8.69889427]
[1672900732788,4.1690117,1250.6,1250.5,8.69889432]
[1672900732990,2.38168146,1250.6,1250.5,8.69889432]
[1672900733203,4.1689813,1250.6,1250.5,7.50202794]
[1672900733518,4.1689813,1250.6,1250.5,8.69889635]
[1672900733729,4.1689813,1250.6,1250.5,7.50202794]
[1672900733935,1.78729984,1250.6,1250.5,15.48202794]
[1672900734567,4.1689813,1250.6,1250.5,15.48202794]
[1672900734772,2.9692419,1250.7,1250.6,11.648]
[1672900734773,1.78758408,1250.7,1250.6,11.648]
[1672900735091,2.5,1250.8,1250.7,10.48]
[1672900735301,2.5,1250.8,1250.7,13.47188872]
[1672900735725,2.5,1250.8,1250.7,11.67675549]
[1672900736247,5.4692419,1250.8,1250.7,11.67675549]
[1672900737933,2.5,1250.8,1250.7,11.67675549]
[1672900738144,5.4692419,1250.8,1250.7,11.67675549]
[1672900738872,5.4692419,1250.8,1250.7,9.17675549]
[1672900741610,2.9692419,1250.8,1250.7,9.17675549]
[1672900743290,2.9692419,1250.8,1250.7,1.19675549]
[1672900744124,2.9692419,1250.8,1250.7,11.67675549]
[1672900745181,2.9692419,1250.9,1250.7,13.47188872]
[1672900745396,2.5,1250.8,1250.7,13.47188872]
[1672900745707,5.4692419,1250.9,1250.7,13.47188872]
[1672900746968,5.4692419,1250.9,1250.8,1.19675549]
[1672900747175,2.9692419,1250.9,1250.8,3.69675549]
[1672900747701,2.9692419,1251.0,1250.8,8.69968872]
[1672900747915,2.5,1250.9,1250.8,8.69968872]
[1672900748120,5.4692419,1251.0,1250.8,8.69968872]
[1672900748959,2.9692419,1251.0,1250.8,16.67968872]
[1672900752118,2.9692419,1251.0,1250.9,1.19675549]
[1672900752532,2.9692419,1251.0,1250.8,16.67968872]
[1672900752741,2.9692419,1251.0,1250.9,2.5]
[1672900759894,2.9692419,1251.0,1250.8,16.67968872]
[1672900760944,2.9692419,1251.0,1250.8,14.88455549]
[1672900762093,2.9692419,1251.0,1250.8,16.67968872]
[1672900762305,2.9692419,1251.0,1250.8,14.88455549]
[1672900762838,2.9692419,1251.0,1250.8,16.67968872]
[1672900764932,4.8829432,1250.9,1250.8,16.67968872]
[1672900765145,2.5,1250.9,1250.8,16.67968872]
[1672900765354,2.3829432,1250.9,1250.8,16.67968872]
[1672900766297,2.3829432,1250.9,1250.8,14.88455549]
[1672900768089,2.3829432,1250.9,1250.8,11.67675549]
[1672900769358,2.3829432,1250.9,1250.8,13.47188872]
[1672900770605,2.3829432,1250.9,1250.8,12.27513323]
[1672900770815,5.3521851,1251.0,1250.8,12.27513323]
[1672900771134,5.3521851,1251.0,1250.9,4.40454105]
[1672900771347,5.35318327,1251.0,1250.9,6.90454105]
[1672900771979,2.9692419,1251.0,1250.9,6.90454105]
[1672900774180,2.9692419,1251.0,1250.9,8.69967428]
[1672900774811,2.9692419,1251.0,1250.9,6.90454105]
[1672900776074,2.9692419,1251.0,1250.9,3.69674105]
[1672900776495,2.9692419,1251.0,1250.9,5.49187428]
[1672900777021,2.9692419,1251.0,1250.9,8.69967428]
[1672900777853,2.9692419,1251.0,1250.9,5.49187428]
[1672900778168,2.9692419,1251.0,1250.9,8.69967428]
[1672900779436,2.9692419,1251.0,1250.9,5.49187428]
[1672900779751,2.9692419,1251.0,1250.9,6.90454105]
[1672900780277,6.06316299,1251.1,1250.9,3.69674105]
[1672900781430,2.98245773,1251.0,1250.9,5.49187428]
[1672900781633,2.98245773,1251.0,1250.9,3.69674105]
[1672900783108,2.98245773,1251.0,1250.9,1.19674105]
[1672900783313,6.06316299,1251.1,1250.9,1.19674105]
[1672900783738,6.06316299,1251.1,1250.9,2.99187428]
[1672900783955,6.06316299,1251.1,1250.9,1.19674105]
[1672900784586,2.98347093,1251.0,1250.9,10.97187428]
[1672900784899,7.87039443,1251.0,1250.9,12.16864157]
[1672900785113,2.98347093,1251.0,1250.9,12.16864157]
[1672900785316,2.98347093,1251.0,1250.9,10.37350834]
[1672900785524,2.98347093,1251.0,1250.9,12.17069565]
[1672900785730,5.37059691,1251.0,1250.9,10.37350834]
[1672900785943,5.37060046,1251.0,1250.9,10.37350834]
[1672900786157,5.37060183,1251.0,1250.9,10.37350834]
[1672900789211,2.3871309,1251.0,1250.9,10.37350834]
[1672900789521,5.37060183,1251.0,1250.9,12.17044988]
[1672900792362,5.37060183,1251.0,1250.9,15.37824988]
[1672900792777,2.3871309,1251.0,1250.9,13.58130834]
[1672900793721,2.3871309,1251.0,1250.9,14.99790771]
[1672900794357,2.3871309,1251.0,1250.9,13.58130834]
[1672900794771,2.3871309,1251.0,1250.9,14.99791099]
[1672900794983,2.3871309,1251.0,1250.9,13.58130834]
[1672900795929,2.3871309,1251.0,1250.9,10.37350834]
[1672900796137,2.3871309,1251.0,1250.9,13.58130834]
[1672900798241,2.9831203,1251.0,1250.9,15.59079127]
[1672900799185,1.19324739,1251.0,1250.9,15.59079127]
[1672900799393,2.9831203,1251.0,1250.9,15.59079127]
[1672900799603,1.19324739,1251.0,1250.9,15.59079127]
[1672900799814,2.9831203,1251.0,1250.9,15.59079127]
[1672900800235,2.9831203,1251.0,1250.9,17.98511287]
[1672900800445,4.17700381,1251.0,1250.9,14.99867845]
[1672900800651,4.17700381,1251.0,1250.9,16.41524616]
[1672900801397,1.78987291,1251.0,1250.9,16.41524616]
[1672900801923,1.78219064,1251.0,1250.9,16.41524616]
[1672900802236,4.16932154,1251.0,1250.9,16.41524616]
[1672900802441,1.78219064,1251.0,1250.9,16.41524616]
[1672900805395,1.78219064,1251.0,1250.9,13.20744616]
[1672900805708,1.78219064,1251.0,1250.9,16.41524616]
[1672900809278,4.16932154,1251.0,1250.9,16.41524616]
[1672900809484,4.16932154,1251.0,1250.9,8.43524616]
[1672900809694,2.3871309,1251.0,1250.9,14.99867845]
[1672900809906,2.3871309,1251.0,1250.9,16.4152675]
[1672900812326,2.3871309,1251.0,1250.9,8.81470473]
[1672900813907,2.3871309,1251.0,1250.9,14.99867845]
[1672900814121,2.3871309,1251.0,1250.9,16.79482607]
[1672900814319,5.37060183,1251.0,1250.9,14.40050447]
[1672900814742,2.3871309,1251.0,1250.9,6.42050447]
[1672900815473,2.3871309,1251.0,1250.9,3.21270447]
[1672900816214,2.3871309,1251.0,1250.9,5.60702607]
[1672900818738,2.3871309,1251.0,1250.9,3.81087845]
[1672900819474,2.3871309,1251.0,1250.9,5.60741035]
[1672900819895,2.3871309,1251.0,1250.9,7.40394463]
[1672900821156,2.3871309,1251.0,1250.9,5.60741035]
[1672900823153,2.3871309,1251.0,1250.9,7.02404268]
[1672900824516,2.3871309,1251.0,1250.9,10.23184268]
[1672900826722,5.37060183,1251.0,1250.9,10.23184268]
[1672900827665,2.3871309,1251.0,1250.9,10.23184268]
[1672900828398,5.37060183,1251.0,1250.9,10.23184268]
[1672900828609,2.3871309,1251.0,1250.9,10.23184268]
[1672900829033,2.3871309,1251.0,1250.9,21.19834287]
[1672900829349,2.3871309,1251.0,1250.9,18.21184268]
[1672900830184,2.3871309,1251.0,1250.9,15.00404268]
[1672900830491,2.3871309,1251.0,1250.9,21.19834287]
[1672900831239,2.3871309,1251.0,1250.9,17.99054287]
[1672900831550,2.3871309,1251.0,1250.9,21.19834287]
[1672900831759,2.3871309,1251.0,1250.9,18.21184268]
[1672900832501,2.3871309,1251.0,1250.9,21.19834287]
[1672900833347,2.3871309,1251.0,1250.9,17.99054287]
[1672900833548,2.3871309,1251.0,1250.9,18.21184268]
[1672900834815,2.3871309,1251.0,1250.9,21.19834287]
[1672900835442,5.37060183,1251.1,1250.9,18.80402127]
[1672900835653,5.37060183,1251.1,1251.0,6.31272743]
[1672900835866,5.37060183,1251.1,1251.0,4.8960951]
[1672900837219,2.3871309,1251.1,1251.0,14.29261875]
[1672900837433,2.3871309,1251.2,1251.0,14.88302384]
[1672900837648,2.3871309,1251.2,1251.1,15.00004378]
[1672900838071,2.3871309,1251.2,1251.1,14.99992008]
[1672900838383,2.3871309,1251.2,1251.1,13.58352013]
[1672900838587,2.3871309,1251.2,1251.1,15.37974999]
[1672900839225,2.3871309,1251.2,1251.1,15.37990567]
[1672900840480,2.3871309,1251.2,1251.1,12.98418554]
[1672900840901,2.3871309,1251.2,1251.1,13.58352013]
[1672900842160,2.3871309,1251.2,1251.1,15.3795069]
[1672900842377,2.3871309,1251.2,1251.1,15.37909276]
[1672900842689,2.3871309,1251.2,1251.1,12.98337263]
[1672900846893,2.98347093,1251.2,1251.1,9.17681575]
[1672900847104,5.48347093,1251.2,1251.1,1.19681575]
[1672900848156,2.0,1251.1,1251.0,5.49238838]
[1672900848365,4.38451386,1251.1,1251.0,5.49238838]
[1672900848995,4.38451386,1251.1,1251.0,2.99238838]
[1672900849631,4.38451386,1251.1,1251.0,5.49238838]
[1672900850052,4.38451386,1251.1,1251.0,2.99238838]
[1672900850362,7.36798479,1251.1,1251.0,2.99238838]
[1672900850574,7.36798479,1251.1,1251.0,1.19681575]
[1672900850782,7.36798479,1251.1,1251.0,2.99238838]
[1672900851417,4.38451386,1251.1,1251.0,2.99238838]
[1672900851627,7.36798479,1251.1,1251.0,2.99238838]
[1672900851838,4.38451386,1251.1,1251.0,2.99238838]
[1672900852572,7.36798479,1251.1,1251.0,2.99238838]
[1672900854669,7.36798479,1251.1,1251.0,5.49238838]
[1672900854670,5.36798479,1251.1,1251.0,5.49238838]
[1672900854883,2.38451386,1251.1,1251.0,5.49238838]
[1672900856462,2.38451386,1251.1,1251.0,4.29557263]
[1672900858877,2.38451386,1251.1,1251.0,6.69129276]
[1672900859608,1.19243154,1251.1,1251.0,6.90286916]
[1672900860456,1.19243154,1251.1,1251.0,9.29682885]
[1672900860980,1.19243154,1251.1,1251.0,6.90286916]
[1672900861507,1.19243154,1251.1,1251.0,14.88286916]
[1672900861720,2.98108162,1251.1,1251.0,14.88286916]
[1672900862245,2.98108162,1251.1,1251.0,17.27681323]
[1672900862449,2.98108162,1251.1,1251.0,14.88286916]
[1672900862979,2.98108162,1251.1,1251.0,17.27683758]
[1672900863183,2.98108162,1251.1,1251.0,14.88286916]
[1672900863388,2.98108162,1251.1,1251.0,18.09066916]
[1672900863607,2.98108162,1251.1,1251.0,20.4844534]
[1672900864555,2.98108162,1251.1,1251.0,17.2766534]
[1672900864768,2.98108162,1251.1,1251.0,20.4844534]
[1672900866345,1.78865008,1251.1,1251.0,16.08158424]
[1672900866658,1.78865008,1251.1,1251.0,14.29026104]
[1672900866868,2.38451386,1251.1,1251.0,14.6693403]
[1672900867081,4.88451386,1251.1,1251.0,14.6693403]
[1672900868656,2.38451386,1251.1,1251.0,14.6693403]
[1672900869921,2.3797665,1251.1,1251.0,12.87378424]
[1672900872233,4.16865097,1251.1,1251.0,14.29027354]
[1672900872966,1.78888447,1251.1,1251.0,14.29027354]
[1672900873384,2.98157697,1251.1,1251.0,14.88298949]
[1672900874536,1.78888447,1251.1,1251.0,17.27761712]
[1672900874858,1.78888447,1251.1,1251.0,17.2776128]
[1672900875071,1.78888447,1251.1,1251.0,14.88298949]
[1672900875268,1.78888447,1251.1,1251.0,17.27762618]
[1672900875482,1.78888447,1251.1,1251.0,17.27763602]
[1672900876119,1.78888447,1251.1,1251.0,20.48543602]
[1672900876332,1.78888447,1251.1,1251.0,18.09078949]